bitfinex-derivatives/quotes_SOLF0:USTF0_20250625
["timestamp","ask_amount","ask_price","bid_price","bid_amount"]
[1750847670116,6.8511,145.89,145.87,6.8518]
[1750847672020,3.37697672,145.88,145.85,6.34903392]
[1750847672220,3.37697672,145.88,145.84,6.34903392]
[1750847672421,3.37697672,145.88,145.83,6.34903392]
[1750847672621,10.22837672,145.88,145.84,6.34903392]
[1750847673118,3.37697672,145.88,145.86,6.8522]
[1750847675221,10.22837672,145.88,145.86,6.8522]
[1750847676218,6.8514,145.88,145.86,6.8522]
[1750847676520,6.8514,145.88,145.85,6.8525]
[1750847678823,6.8519,145.87,145.85,6.8525]
[1750847680727,6.8523,145.86,145.84,13.20213392]
[1750847680920,36.0,145.9,145.82,13.1390151]
[1750847680921,3.37697672,145.85,145.82,6.34903392]
[1750847681225,6.8544,145.82,145.79,6.8551]
[1750847681524,6.8544,145.82,145.79,6.34903392]
[1750847681719,3.37697672,145.83,145.79,6.34903392]
[1750847681923,3.37697672,145.83,145.77,13.25273392]
[1750847682326,3.37697672,145.83,145.78,6.34903392]
[1750847682730,6.8543,145.82,145.78,6.34903392]
[1750847683227,6.8543,145.82,145.8,6.855]
[1750847683527,6.8543,145.82,145.78,6.34903392]
[1750847683528,6.8548,145.81,145.78,6.34903392]
[1750847683723,6.8548,145.81,145.77,6.9037]
[1750847683724,39.39697672,145.81,145.77,6.34903392]
[1750847683918,39.39697672,145.81,145.76,13.20573392]
[1750847684116,39.39697672,145.81,145.76,6.8567]
[1750847684314,6.8559,145.79,145.76,6.8567]
[1750847685228,6.8553,145.8,145.77,6.8565]
[1750847685726,6.8553,145.8,145.78,6.856]
[1750847685921,36.02,145.81,145.75,9.72601064]
[1750847686126,36.02,145.81,145.77,6.34903392]
[1750847686325,3.37697672,145.83,145.81,6.8543]
[1750847688825,3.37697672,145.83,145.77,6.34903392]
[1750847689128,6.8559,145.79,145.76,6.8567]
[1750847689431,3.37697672,145.78,145.76,6.8567]
[1750847689821,10.23327672,145.78,145.75,6.8572]
[1750847690021,3.37697672,145.78,145.74,6.34903392]
[1750847690222,3.37697672,145.78,145.76,6.8567]
[1750847690421,3.37697672,145.78,145.74,6.34903392]
[1750847691032,3.37697672,145.78,145.73,49.30953392]
[1750847691332,3.37697672,145.78,145.74,6.34903392]
[1750847692533,6.8559,145.79,145.77,6.8563]
[1750847693533,6.8562,145.78,145.76,6.8568]
[1750847694029,6.8558,145.79,145.76,6.8568]
[1750847694531,39.41697672,145.8,145.75,6.8572]
[1750847694831,3.37697672,145.78,145.73,13.26953392]
[1750847695037,10.23417672,145.76,145.71,6.34903392]
[1750847695233,3.37697672,145.76,145.71,6.34903392]
[1750847695622,46.17417672,145.76,145.71,6.34903392]
[1750847695828,39.31697672,145.76,145.69,13.31443392]
[1750847696235,6.8576,145.75,145.72,6.8585]
[1750847696737,6.8579,145.75,145.72,6.8585]
[1750847697126,6.8579,145.75,145.73,6.8583]
[1750847697538,46.17417672,145.76,145.69,6.9654]
[1750847697835,46.17417672,145.76,145.73,6.858]
[1750847698035,46.17417672,145.76,145.69,13.31443392]
[1750847698230,46.17417672,145.76,145.73,6.8581]
[1750847698732,6.8575,145.75,145.72,6.8585]
[1750847699239,10.23507672,145.74,145.69,6.9654]
[1750847699542,10.23507672,145.74,145.71,6.8589]
[1750847700043,35.94,145.76,145.68,6.34903392]
[1750847700340,3.37697672,145.75,145.67,10.26147672]
[1750847700537,10.23477672,145.75,145.72,6.8586]
[1750847700741,3.37697672,145.75,145.72,6.8586]
[1750847701143,6.8576,145.75,145.72,6.8586]
[1750847703548,6.858,145.74,145.72,6.8586]
[1750847704245,6.8585,145.73,145.67,6.8845]
[1750847704451,3.37697672,145.72,145.67,6.8845]
[1750847704646,39.33697672,145.72,145.67,6.8845]
[1750847705139,39.33697672,145.72,145.67,4.5585]
[1750847705340,39.33697672,145.72,145.68,6.8605]
[1750847705548,39.33697672,145.72,145.64,9.72601064]
[1750847705749,39.33697672,145.72,145.64,6.34903392]
[1750847705750,3.37697672,145.7,145.64,6.34903392]
[1750847705946,3.37697672,145.7,145.66,6.8615]
[1750847706750,6.8608,145.68,145.66,6.8615]
[1750847707545,6.8605,145.69,145.66,6.8615]
[1750847707745,6.8605,145.69,145.67,6.8612]
[1750847707940,6.8605,145.69,145.63,11.21133392]
[1750847708246,35.96,145.72,145.65,6.8618]
[1750847708247,3.37697672,145.68,145.65,6.8618]
[1750847708551,3.37697672,145.66,145.61,2.4115]
[1750847708852,6.8625,145.65,145.61,2.4115]
[1750847709046,3.37697672,145.66,145.61,2.4115]
[1750847710149,3.37697672,145.64,145.59,4.629]
[1750847710456,39.33697672,145.64,145.59,4.629]
[1750847710844,149.1376,145.73,145.59,4.629]
[1750847711046,149.1376,145.73,145.6,3.37697672]
[1750847711047,3.37697672,145.68,145.6,3.37697672]
[1750847711248,3.37697672,145.66,145.59,4.629]
[1750847711457,3.37697672,145.64,145.59,4.629]
[1750847711751,3.37697672,145.62,145.59,4.629]
[1750847711959,3.37697672,145.62,145.6,6.8642]
[1750847712255,39.33697672,145.62,145.54,6.34903392]
[1750847712454,3.37697672,145.6,145.53,13.47553392]
[1750847713050,10.24167672,145.6,145.57,6.8656]
[1750847713453,3.37697672,145.61,145.59,6.8647]
[1750847713757,3.37697672,145.61,145.54,3.37697672]
[1750847713952,10.24107672,145.61,145.58,6.8652]
[1750847714157,10.24107672,145.61,145.54,3.37697672]
[1750847714361,3.37697672,145.61,145.54,3.37697672]
[1750847714549,3.37697672,145.61,145.59,6.8648]
[1750847714751,3.37697672,145.61,145.53,10.50347672]
[1750847715062,3.37697672,145.59,145.53,7.1265]
[1750847715256,10.24217672,145.59,145.56,6.8662]
[1750847715646,10.24297672,145.57,145.54,6.8671]
[1750847715850,10.24297672,145.57,145.51,35.96]
[1750847715851,3.37697672,145.57,145.51,35.96]
[1750847716255,39.35697672,145.58,145.51,35.96]
[1750847716859,46.22277672,145.58,145.55,6.8669]
[1750847717460,6.866,145.57,145.54,6.8672]
[1750847717759,3.37697672,145.56,145.48,3.37697672]
[1750847717957,3.37697672,145.56,145.53,6.8675]
[1750847718263,35.98,145.58,145.49,6.82]
[1750847718451,3.37697672,145.55,145.49,6.82]
[1750847718651,3.37697672,145.56,145.49,6.82]
[1750847719162,3.37697672,145.56,145.53,6.8674]
[1750847720068,10.24367672,145.56,145.53,6.8674]
[1750847720359,3.37697672,145.54,145.49,6.82]
[1750847720562,3.37697672,145.52,145.45,40.6041]
[1750847720750,3.37697672,145.52,145.49,6.8695]
[1750847721059,35.98,145.53,145.45,40.6041]
[1750847721060,39.35697672,145.53,145.45,40.6041]
[1750847721265,39.35697672,145.53,145.5,6.869]
[1750847721758,39.35697672,145.53,145.51,6.8687]
[1750847721965,39.35697672,145.53,145.45,40.6041]
[1750847722162,35.98,145.53,145.45,40.6041]
[1750847722367,35.98,145.53,145.48,3.37697672]
[1750847722553,35.98,145.53,145.51,6.8685]
[1750847723565,35.98,145.53,145.52,6.8683]
[1750847724968,35.92,145.59,145.52,3.37697672]
[1750847725162,35.92,145.59,145.53,7.1685]
[1750847725661,42.785,145.59,145.53,7.1685]
[1750847726058,42.785,145.59,145.56,6.8662]
[1750847726264,42.785,145.59,145.53,7.1685]
[1750847726461,35.92,145.59,145.53,7.1685]
[1750847727168,35.92,145.59,145.54,3.37697672]
[1750847727865,35.92,145.59,145.53,7.1685]
[1750847727866,35.92,145.59,145.57,6.8657]
[1750847728757,35.92,145.59,145.58,6.8655]
[1750847728964,35.92,145.59,145.53,46.46547672]
[1750847729468,35.92,145.59,145.57,6.8657]
[1750847729669,35.92,145.59,145.53,46.46547672]
[1750847729971,35.92,145.59,145.58,6.8655]
[1750847731170,35.92,145.62,145.57,3.37697672]
[1750847731762,35.92,145.62,145.6,6.8641]
[1750847732368,35.92,145.62,145.61,6.8641]
[1750847732964,35.92,145.62,145.6,6.8643]
[1750847733667,35.92,145.62,145.61,6.8641]
[1750847733866,35.92,145.62,145.57,3.37697672]
[1750847734272,35.92,145.62,145.6,6.8643]
[1750847734869,35.92,145.62,145.61,6.8641]
[1750847735674,35.92,145.62,145.6,6.8644]
[1750847735976,35.92,145.62,145.56,3.37697672]
[1750847736357,35.92,145.62,145.61,6.8641]
[1750847736673,35.92,145.65,145.58,3.37697672]
[1750847736869,35.92,145.65,145.59,6.8206]
[1750847737868,35.92,145.65,145.6,3.37697672]
[1750847738476,3.37697672,145.67,145.64,6.8626]
[1750847739072,35.92,145.68,145.65,6.8621]
[1750847739877,42.781,145.68,145.65,6.8621]
[1750847740979,35.92,145.68,145.66,6.8617]
[1750847741478,35.92,145.68,145.67,6.8612]
[1750847741876,39.27697672,145.71,145.64,3.37697672]
[1750847742077,46.13647672,145.71,145.68,6.8605]
[1750847742781,39.27697672,145.71,145.68,6.8605]
[1750847744080,39.27697672,145.71,145.67,6.8611]
[1750847744378,39.27697672,145.71,145.65,7.0407]
[1750847744779,46.13667672,145.71,145.68,6.8605]
[1750847745681,6.8598,145.7,145.67,6.8609]
[1750847746178,35.9,145.71,145.65,7.0407]
[1750847746482,35.9,145.71,145.66,3.37697672]
[1750847747779,35.9,145.71,145.69,6.86]
[1750847748282,3.37697672,145.72,145.7,6.8596]
[1750847752487,3.37697672,145.72,145.66,6.30726001]
[1750847752788,3.37697672,145.7,145.65,7.0407]
[1750847752989,3.37697672,145.7,145.66,6.8615]
[1750847753686,6.8604,145.69,145.66,6.8615]
[1750847754684,6.8604,145.69,145.67,6.8612]
[1750847754890,6.8604,145.69,145.65,7.0407]
[1750847755695,6.8604,145.69,145.67,6.8612]
[1750847755893,10.23697672,145.7,145.67,6.8612]
[1750847756094,3.37697672,145.7,145.63,6.30726001]
[1750847756297,3.37697672,145.68,145.61,13.29326001]
[1750847756492,11.5912,145.75,145.6,6.30726001]
[1750847756493,3.37697672,145.66,145.6,6.30726001]
[1750847756687,32.1512,145.75,145.58,6.30726001]
[1750847756688,3.37697672,145.64,145.58,6.30726001]
[1750847757292,3.37697672,145.64,145.6,6.8642]
[1750847758197,6.8634,145.63,145.6,6.8642]
[1750847758786,3.37697672,145.64,145.57,10.77586001]
[1750847758990,3.37697672,145.62,145.55,8.70796001]
[1750847759387,6.8648,145.6,145.57,6.8657]
[1750847759591,10.24177672,145.6,145.55,8.70796001]
[1750847759898,6.8651,145.59,145.56,6.8662]
[1750847760198,3.37697672,145.6,145.53,10.81246001]
[1750847760390,3.37697672,145.58,145.53,6.30726001]
[1750847760593,3.37697672,145.58,145.5,16.71773673]
[1750847760792,3.37697672,145.58,145.51,6.30726001]
[1750847760994,31.8995,145.67,145.51,6.30726001]
[1750847760995,3.37697672,145.56,145.51,6.30726001]
[1750847761199,3.37697672,145.56,145.5,16.71773673]
[1750847761401,3.37697672,145.56,145.53,6.8676]
[1750847761700,3.37697672,145.56,145.51,6.30726001]
[1750847761899,3.37697672,145.58,145.51,6.30726001]
[1750847762298,3.37697672,145.58,145.51,9.68423673]
[1750847762493,20.5726,145.66,145.51,9.68423673]
[1750847762494,10.24157672,145.6,145.52,6.30726001]
[1750847763299,10.24157672,145.6,145.56,6.8661]
[1750847766009,6.8652,145.59,145.56,6.8661]
[1750847766216,6.8652,145.59,145.52,3.37697672]
[1750847766217,6.8652,145.59,145.55,6.8668]
[1750847766506,3.37697672,145.6,145.55,6.8668]
[1750847766706,3.37697672,145.58,145.54,6.8673]
[1750847767101,6.8678,145.54,145.49,6.30726001]
[1750847767309,3.37697672,145.54,145.49,6.30726001]
[1750847767713,10.24457672,145.54,145.51,6.8684]
[1750847768009,3.37697672,145.54,145.51,6.8684]
[1750847768309,3.37697672,145.54,145.52,6.8679]
[1750847768505,3.37697672,145.54,145.49,6.30726001]
[1750847768811,3.37697672,145.54,145.51,6.8685]
[1750847769308,3.37697672,145.54,145.5,6.869]
[1750847769509,3.37697672,145.54,145.49,6.30726001]
[1750847770103,6.8681,145.53,145.48,6.30726001]
[1750847770411,3.37697672,145.52,145.46,8.56026001]
[1750847770600,3.37697672,145.52,145.5,6.8692]
[1750847770799,3.37697672,145.52,145.47,6.30726001]
[1750847771205,3.37697672,145.53,145.46,8.56026001]
[1750847771509,3.37697672,145.55,145.48,6.30726001]
[1750847771700,6.8675,145.54,145.51,6.8687]
[1750847772303,10.24407672,145.55,145.52,6.8681]
[1750847772505,3.37697672,145.59,145.51,3.37697672]
[1750847772803,6.849,145.64,145.46,14.86752003]
[1750847772804,10.24127672,145.61,145.58,6.8654]
[1750847773006,3.37697672,145.61,145.58,6.8654]
[1750847774117,10.24107672,145.61,145.58,6.8654]
[1750847774308,10.24107672,145.61,145.57,6.8657]
[1750847774513,10.24107672,145.61,145.54,13.30586001]
[1750847774714,3.37697672,145.61,145.59,6.8649]
[1750847774913,3.37697672,145.61,145.55,6.30726001]
[1750847775214,3.37697672,145.61,145.54,13.30586001]
[1750847775518,6.8638,145.62,145.55,6.30726001]
[1750847775709,10.24077672,145.62,145.55,6.30726001]
[1750847775910,3.37697672,145.62,145.54,13.30586001]
[1750847776319,5.65898715,145.62,145.54,13.30586001]
[1750847776814,12.52288715,145.62,145.54,13.30586001]
[1750847777206,12.52288715,145.62,145.58,6.8651]
[1750847778014,12.52288715,145.62,145.59,6.865]
[1750847778619,5.65898715,145.62,145.59,6.865]
[1750847779517,6.8633,145.63,145.55,6.35627948]
[1750847779816,6.8633,145.63,145.6,6.8643]
[1750847780010,6.8628,145.64,145.55,12.01526663]
[1750847780210,6.8628,145.64,145.6,6.8642]
[1750847781013,6.8632,145.63,145.6,6.8642]
[1750847781815,6.8628,145.64,145.61,6.864]
[1750847782117,5.65898715,145.65,145.56,6.35627948]
[1750847782320,6.8631,145.63,145.6,6.8643]
[1750847788014,6.8629,145.64,145.61,6.8638]
[1750847788218,5.65898715,145.65,145.55,5.65898715]
[1750847788916,6.8634,145.63,145.6,6.8643]
[1750847789317,6.8629,145.64,145.55,5.65898715]
[1750847789527,5.65898715,145.69,145.6,5.65898715]
[1750847790028,5.65898715,145.69,145.6,12.01443407]
[1750847790324,5.65898715,145.71,145.62,5.65898715]
[1750847790523,6.8601,145.7,145.67,6.8612]
[1750847792319,5.65898715,145.71,145.63,6.35590438]
[1750847792320,6.8595,145.71,145.63,6.35590438]
[1750847792522,2.4323,145.72,145.64,5.65898715]
[1750847792523,5.65898715,145.72,145.64,5.65898715]
[1750847792717,5.65898715,145.72,145.64,12.01489153]
[1750847792921,6.8594,145.71,145.68,6.8604]
[1750847795230,6.8591,145.72,145.65,6.35590438]
[1750847795625,5.65898715,145.73,145.68,6.8604]
[1750847795827,6.8596,145.71,145.68,6.8604]
[1750847796030,6.8596,145.71,145.65,6.35590438]
[1750847796327,5.65898715,145.73,145.69,6.8603]
[1750847796530,6.8592,145.72,145.69,6.8603]
[1750847796827,5.65898715,145.73,145.68,6.8606]
[1750847797124,6.8593,145.71,145.68,6.8606]
[1750847797831,5.65898715,145.73,145.65,6.35590438]
[1750847798021,5.65898715,145.73,145.66,6.35590438]
[1750847798324,3.38968735,145.74,145.7,6.8598]
[1750847798525,6.8587,145.73,145.7,6.8598]
[1750847798719,3.38968735,145.74,145.67,11.03980438]
[1750847798929,3.38968735,145.74,145.71,6.8593]
[1750847799132,10.24788735,145.74,145.71,6.8593]
[1750847799928,6.8582,145.74,145.71,6.8593]
[1750847800130,10.24738735,145.75,145.72,6.8589]
[1750847800330,3.38968735,145.75,145.68,3.38968735]
[1750847800523,2.3499,145.8,145.7,3.38968735]
[1750847800831,3.38968735,145.78,145.7,3.38968735]
[1750847801039,3.38968735,145.78,145.75,6.8572]
[1750847802224,10.24588735,145.78,145.75,6.8572]
[1750847802429,3.38968735,145.78,145.74,6.8577]
[1750847803428,6.8566,145.77,145.74,6.8577]
[1750847803922,3.38968735,145.76,145.68,6.35499767]
[1750847804128,3.38968735,145.76,145.67,16.82418502]
[1750847804429,3.38968735,145.74,145.7,6.8598]
[1750847804830,3.38968735,145.74,145.67,7.0795]
[1750847805032,6.8587,145.73,145.67,7.0795]
[1750847805426,6.8587,145.73,145.71,6.8593]
[1750847805930,6.8587,145.73,145.7,6.8597]
[1750847806633,3.38968735,145.72,145.67,7.0795]
[1750847807036,6.8596,145.71,145.67,7.0795]
[1750847807230,3.38968735,145.72,145.67,7.0795]
[1750847807633,10.24878735,145.72,145.69,6.8602]
[1750847809639,6.8594,145.71,145.69,6.8602]
[1750847810432,10.24878735,145.72,145.69,6.8602]
[1750847811135,10.24878735,145.72,145.7,6.8598]
[1750847811345,10.24878735,145.72,145.67,7.0795]
[1750847812039,10.24878735,145.72,145.69,6.8601]
[1750847813647,6.8586,145.73,145.7,6.8598]
[1750847813845,3.38968735,145.76,145.68,3.38968735]
[1750847814346,6.8578,145.75,145.72,6.8588]
[1750847815445,6.858,145.74,145.72,6.8588]
[1750847816538,6.8577,145.75,145.73,6.8583]
[1750847816846,3.38968735,145.79,145.72,3.38968735]
[1750847817146,6.8568,145.77,145.74,6.8577]
[1750847817843,6.8568,145.77,145.75,6.8574]
[1750847819739,6.8568,145.77,145.74,6.8577]
[1750847819937,6.8568,145.77,145.73,6.9375]
[1750847820644,6.8563,145.78,145.75,6.8572]
[1750847820843,3.38968735,145.77,145.73,6.9375]
[1750847821149,10.24658735,145.77,145.74,6.8576]
[1750847821350,3.38968735,145.77,145.7,6.35499767]
[1750847821554,3.38968735,145.75,145.69,13.52949767]
[1750847822048,6.8582,145.74,145.69,7.1745]
[1750847822236,3.38968735,145.75,145.69,7.1745]
[1750847822436,6.8586,145.73,145.71,6.8593]
[1750847824252,3.38968735,145.73,145.69,6.35499767]
[1750847824457,3.38968735,145.73,145.67,6.35499767]
[1750847824753,3.38968735,145.73,145.71,6.8591]
[1750847825252,41.1671,145.82,145.71,6.8591]
[1750847825253,6.8568,145.77,145.71,6.35499767]
[1750847825453,3.38968735,145.78,145.71,13.51499767]
[1750847825640,3.38968735,145.76,145.71,13.51499767]
[1750847826346,10.24688735,145.76,145.72,6.8586]
[1750847826948,10.24688735,145.76,145.73,6.8584]
[1750847827653,3.38968735,145.74,145.72,6.8587]
[1750847828055,10.24768735,145.74,145.71,6.8591]
[1750847828253,10.24768735,145.74,145.69,6.35499767]
[1750847828449,10.24768735,145.74,145.7,6.35499767]
[1750847828649,3.38968735,145.72,145.69,6.35499767]
[1750847829551,3.38968735,145.76,145.7,6.35499767]
[1750847829852,6.8611,145.68,145.66,6.35499767]
[1750847830160,3.38968735,145.67,145.65,6.8619]
[1750847830348,3.38968735,145.67,145.64,6.35499767]
[1750847830554,3.38968735,145.65,145.64,6.35499767]
[1750847830748,3.38968735,145.65,145.6,14.91759535]
[1750847830749,3.38968735,145.65,145.63,6.35499767]
[1750847831055,3.38968735,145.65,145.63,6.8629]
[1750847831557,3.38968735,145.65,145.63,13.21789767]
[1750847831858,3.38968735,145.65,145.64,6.8626]
[1750847832043,3.38968735,145.67,145.64,6.35499767]
[1750847832242,3.38968735,145.67,145.65,6.35499767]
[1750847832654,3.38968735,145.67,145.64,6.35499767]
[1750847832856,3.38968735,145.67,145.65,6.35499767]
[1750847833251,3.38968735,145.67,145.63,6.35499767]
[1750847833459,45.9321,145.75,145.64,6.8626]
[1750847833460,3.38968735,145.65,145.64,6.8626]
[1750847833656,3.38968735,145.65,145.64,13.21759767]
[1750847834249,3.38968735,145.67,145.64,6.35499767]
[1750847834454,3.38968735,145.67,145.65,6.35499767]
[1750847835053,3.38968735,145.67,145.66,6.8617]
[1750847836760,3.38968735,145.69,145.66,6.35499767]
[1750847836960,3.38968735,145.69,145.67,6.35499767]
[1750847837162,3.38968735,145.69,145.67,6.861]
[1750847837665,3.38968735,145.69,145.66,6.35499767]
[1750847837864,3.38968735,145.69,145.67,6.8612]
[1750847838162,10.25008735,145.69,145.66,6.35499767]
[1750847838855,6.8608,145.68,145.65,6.35499767]
[1750847839057,3.38968735,145.67,145.65,6.35499767]
[1750847839868,3.38968735,145.69,145.66,6.35499767]
[1750847840259,3.38968735,145.69,145.66,13.21669767]
[1750847840458,3.38968735,145.69,145.66,6.8617]
[1750847840968,10.25018735,145.69,145.66,6.8617]
[1750847841667,10.25018735,145.69,145.66,13.21669767]
[1750847841866,6.8608,145.68,145.66,6.8617]
[1750847842371,10.25018735,145.69,145.66,6.8617]
[1750847843060,3.38968735,145.7,145.66,6.35499767]
[1750847843467,4.7591,145.75,145.66,6.35499767]
[1750847843662,3.38968735,145.72,145.67,6.35499767]
[1750847843965,10.24828735,145.73,145.7,6.8595]
[1750847844166,3.38968735,145.73,145.68,6.35499767]
[1750847844467,3.38968735,145.75,145.69,6.35499767]
[1750847844674,6.8582,145.74,145.71,6.8591]
[1750847845265,3.38968735,145.75,145.72,6.8588]
[1750847845863,10.24748735,145.75,145.72,6.8588]
[1750847846064,3.38968735,145.75,145.72,6.8588]
[1750847847167,6.858,145.74,145.72,6.8588]
[1750847848372,6.858,145.74,145.71,13.21409767]
[1750847848572,3.38968735,145.73,145.7,6.35499767]
[1750847849973,10.24828735,145.73,145.71,6.8591]
[1750847850174,3.38968735,145.73,145.7,6.35499767]
[1750847850570,3.38968735,145.73,145.7,13.21449767]
[1750847851377,6.8591,145.72,145.7,13.21449767]
[1750847851871,6.8591,145.72,145.7,6.8595]
[1750847852278,6.8594,145.71,145.66,2.4112]
[1750847852476,3.38968735,145.73,145.66,2.4112]
[1750847852673,18.3916,145.8,145.66,5.80088735]
[1750847852872,3.38968735,145.75,145.71,6.8591]
[1750847853072,3.38968735,145.75,145.66,5.80088735]
[1750847853377,6.8591,145.72,145.66,2.4112]
[1750847854074,6.8591,145.72,145.69,6.86]
[1750847854473,6.8591,145.72,145.66,2.4112]
[1750847856181,6.8591,145.72,145.69,6.86]
[1750847856384,6.8591,145.72,145.66,2.4112]
[1750847857475,6.8591,145.72,145.69,6.8601]
[1750847857777,3.38968735,145.73,145.69,6.8601]
[1750847857975,3.38968735,145.73,145.66,2.4112]
[1750847858180,10.24838735,145.73,145.7,6.8598]
[1750847860279,6.8589,145.72,145.7,6.8598]
[1750847860582,3.38968735,145.73,145.69,6.8601]
[1750847860879,6.8593,145.72,145.69,6.8601]
[1750847861084,6.8593,145.72,145.66,2.4112]
[1750847861880,10.24838735,145.73,145.66,2.4112]
[1750847862176,3.38968735,145.71,145.65,4.4887]
[1750847862377,3.38968735,145.67,145.59,5.65138735]
[1750847862578,3.38968735,145.67,145.59,10.18358735]
[1750847862979,10.25098735,145.67,145.65,6.8619]
[1750847864775,10.25098735,145.67,145.64,6.8624]
[1750847865981,10.25098735,145.67,145.59,10.18358735]
[1750847865982,10.25098735,145.67,145.65,6.8621]
[1750847866281,3.38968735,145.67,145.59,6.7939]
[1750847866476,3.38968735,145.63,145.59,6.7939]
[1750847867479,6.8636,145.62,145.59,6.7939]
[1750847867674,3.38968735,145.61,145.55,7.0164]
[1750847868583,10.25378735,145.61,145.58,6.865]
[1750847868980,3.38968735,145.61,145.55,7.0164]
[1750847870187,3.38968735,145.61,145.59,6.8647]
[1750847870483,3.38968735,145.61,145.55,7.0164]
[1750847870981,10.25408735,145.61,145.55,7.0164]
[1750847871281,3.38968735,145.61,145.55,7.0164]
[1750847871984,3.38968735,145.59,145.55,7.0164]
[1750847872480,3.38968735,145.59,145.57,6.8656]
[1750847872687,3.38968735,145.61,145.55,7.0164]
[1750847872985,10.25398735,145.61,145.58,6.8652]
[1750847873381,3.38968735,145.59,145.55,7.0164]
[1750847873581,10.25468735,145.59,145.56,6.8661]
[1750847874077,6.8655,145.58,145.55,6.8667]
[1750847874279,3.38968735,145.57,145.55,6.8667]
[1750847874580,3.38968735,145.57,145.51,6.8214]
[1750847874778,10.25588735,145.57,145.51,6.8214]
[1750847874987,3.38968735,145.58,145.51,6.8214]
[1750847875782,3.38968735,145.58,145.56,6.8663]
[1750847875982,3.38968735,145.6,145.52,3.38968735]
[1750847876989,3.38968735,145.6,145.58,6.8651]
[1750847877984,3.38968735,145.6,145.51,6.8214]
[1750847878178,3.38968735,145.58,145.51,6.8214]
[1750847878688,3.38968735,145.56,145.51,6.8214]
[1750847879188,3.38968735,145.56,145.54,6.8674]
[1750847879689,3.38968735,145.56,145.51,6.8214]
[1750847880690,10.25628735,145.56,145.51,6.8214]
[1750847880986,3.38968735,145.56,145.51,6.8214]
[1750847881490,6.868,145.64,145.51,6.8214]
[1750847881690,3.38968735,145.57,145.51,6.8214]
[1750847881878,3.38968735,145.57,145.56,6.8664]
[1750847884393,3.38968735,145.57,145.55,6.8667]
[1750847884595,3.38968735,145.57,145.51,6.8214]
[1750847884987,3.38968735,145.57,145.55,6.8666]
[1750847885293,3.38968735,145.57,145.51,6.8214]
[1750847885490,3.38968735,145.57,145.54,6.8673]
[1750847885684,3.38968735,145.55,145.51,6.8214]
[1750847886094,3.38968735,145.55,145.54,6.8674]
[1750847886283,3.38968735,145.55,145.51,6.8214]
[1750847886484,3.38968735,145.55,145.52,6.8682]
[1750847886994,3.38968735,145.55,145.53,6.8678]
[1750847887996,3.38968735,145.55,145.54,6.8674]
[1750847888196,3.38968735,145.55,145.51,2.2651]
[1750847888694,6.8665,145.56,145.53,6.8676]
[1750847888889,3.38968735,145.58,145.51,5.65478735]
[1750847889085,3.38968735,145.58,145.52,4.8614]
[1750847889285,10.25528735,145.58,145.55,6.8666]
[1750847889494,3.38968735,145.58,145.52,4.8614]
[1750847889993,3.38968735,145.58,145.56,6.8664]
[1750847892099,10.25518735,145.58,145.56,6.8664]
[1750847892399,10.25518735,145.58,145.55,6.8667]
[1750847892599,6.8662,145.57,145.52,4.8614]
[1750847892792,3.38968735,145.58,145.54,6.8671]
[1750847893002,3.38968735,145.58,145.54,36.67387822]
[1750847893296,3.38968735,145.58,145.55,6.8666]
[1750847893799,6.866,145.57,145.55,6.8666]
[1750847893999,6.866,145.57,145.52,4.8614]
[1750847894000,6.866,145.57,145.54,6.8671]
[1750847894999,6.866,145.57,145.55,6.8668]
[1750847895199,6.8664,145.56,145.52,4.8614]
[1750847895595,10.25608735,145.56,145.52,4.8614]
[1750847895792,10.25608735,145.56,145.54,6.8673]
[1750847896196,3.38968735,145.56,145.52,4.8614]
[1750847896396,3.38968735,145.58,145.52,4.8614]
[1750847896599,3.38968735,145.6,145.53,9.74136986]
[1750847896806,10.25448735,145.6,145.53,9.74136986]
[1750847897098,3.38968735,145.6,145.53,9.74136986]
[1750847897603,10.25448735,145.6,145.57,6.8658]
[1750847899707,6.865,145.59,145.56,6.8662]
[1750847900101,3.38968735,145.6,145.53,6.35168251]
[1750847900301,10.25538735,145.58,145.55,6.8666]
[1750847901209,3.38968735,145.58,145.56,6.8662]
[1750847901418,3.38968735,145.58,145.53,6.35168251]
[1750847901620,10.25518735,145.58,145.55,6.8667]